Cogmind - Beta 13 @@@ ROGUE MODE // 2024.04.01 @ 20:28:13 Player: Cheese Result: Destroyed self with Light Ion Engine chain reaction Performance ------------- Evolutions (2) 1000 Regions Visited (4) 800 Robots Destroyed (63) 315 Value Destroyed (1462) 1462 Prototype IDs (2) 40 Alien Tech Used (0) 0 Bonus (-93) -93 TOTAL SCORE: 3524 Bonus ------- High Alert Combat Kills 11 Follower Combat Kills 105 Friendly Fire -209 Cogmind --------- Core Integrity 0/550 Matter 413/450 Energy 100/280 System Corruption 3% Temperature Cool (12) Movement Treading (240) Ox1 Location -8/Storage Parts ------- > --- POWER (1) -------- Heavy Ion Engine > --- PROPULSION (3) --- Light Treads > --- UTILITY (4) ------ Compact Matter Pod Signal Interpreter > --- WEAPON (3) ------- Advanced EMP Blaster Advanced EMP Blaster Advanced EMP Blaster > --- INVENTORY (5) ---- Ion Engine Flight Unit Advanced EMP Blaster Advanced EMP Blaster Advanced EMP Blaster Peak State ------------ > --- POWER ------------ Heavy Ion Engine > --- PROPULSION ------- Light Treads > --- UTILITY ---------- Compact Matter Pod Signal Interpreter > --- WEAPON ----------- Advanced EMP Blaster Advanced EMP Blaster Advanced EMP Blaster > --- INVENTORY -------- Ion Engine Flight Unit Advanced EMP Blaster Advanced EMP Blaster Advanced EMP Blaster [Rating: 21] Favorites ----------- Power Ion Engine Engine Ion Engine Propulsion Light Treads Treads Light Treads Leg Aluminum Leg Wheel Compact Wheel Flight Unit Flight Unit Utility Medium Storage Unit Device Recalibrator Storage Medium Storage Unit Processor Signal Interpreter Protection Light Armor Plating Weapon Light Assault Rifle Energy Cannon Heavy Ion Cannon Ballistic Gun Light Assault Rifle Launcher Advanced EMP Blaster Impact Weapon Heavy Hammer Build | -11 -10 -9 -8 -8 ------- Run | Yrd Mat Mat Mat Sto Slots Evolved 4 | . . 2 2 . Power . | . . . . . Propulsion 1 | . . . 1 . Utility 2 | . . 2 . . Weapon 1 | . . . 1 . Parts Attached 47 | 6 2 20 12 7 Power 7 | 1 . 3 2 1 Engine 7 | 1 . 3 2 1 Core . | . . . . . Reactor . | . . . . . Propulsion 14 | 2 . 7 4 1 Treads 4 | 1 . 2 . 1 Leg 1 | . . 1 . . Wheel 6 | 1 . 4 1 . Hover . | . . . . . Flight 3 | . . . 3 . Utility 11 | 1 2 4 2 2 Device 1 | . . . 1 . Storage 3 | 1 1 . . 1 Processor 2 | . . . 1 1 Hackware . | . . . . . Protection 5 | . 1 4 . . Artifact . | . . . . . Weapon 15 | 2 . 6 4 3 Energy Gun . | . . . . . Energy Cannon 2 | . . . 2 . Ballistic Gun 8 | 2 . 5 1 . Ballistic Cannon . | . . . . . Launcher 3 | . . . . 3 Special Weapon . | . . . . . Impact Weapon 2 | . . 1 1 . Slashing Weapon . | . . . . . Piercing Weapon . | . . . . . Special Melee Weapon . | . . . . . Unidentified Prototypes 2 | . . . 1 1 Parts Lost 18 | . . 8 10 . Power 2 | . . 1 1 . Propulsion 6 | . . 2 4 . Utility 5 | . . 3 2 . Weapon 5 | . . 2 3 . Highest Loss Streak 4 | . . 4 4 . To Critical Strikes . | . . . . . Average Slot Usage (%) 73 | . 94 74 58 53 Engine 10 | . 14 10 8 9 Treads 7 | . 14 9 . 9 Wheel 10 | . 14 12 7 . Flight 1 | . . . 6 . Storage 10 | . 14 11 8 5 Processor 2 | . . . 6 9 Protection 7 | . 8 10 6 . Energy Cannon 1 | . . . 5 . Ballistic Gun 16 | . 28 19 6 . Launcher 1 | . . . . 20 Impact Weapon 1 | . . 1 2 . Naked Turns 30 | . . . 30 . Heaviest Build 38 | 12 20 29 38 27 Greatest Support 22 | 16 16 22 22 20 Greatest Overweight (x) 8 | . 1 2 8 1 Average Overweight (x) . | . . . 1 . Largest Inventory Capacity 10 | 8 10 10 10 5 Average Capacity 8 | 6 8 10 9 5 Most Carried 10 | 4 7 10 10 5 Average Carried 7 | 2 5 8 7 4 Final Capacity 10 | 8 10 10 10 5 Final Carried 9 | 4 6 9 9 5 Class Distribution -------------------- 71% | Mutant 21% | Scavenger-Mutant 6% | Gunner Dominant Class ---------------- Mutant | -10/Materials Mutant | -9/Materials Mutant | -8/Materials Gunner | -8/Storage Resources | -11 -10 -9 -8 -8 ----------- Run | Yrd Mat Mat Mat Sto Matter Collected 1200 | 226 102 410 287 175 Remotely . | . . . . . Salvage Created 2046 | 26 178 778 570 494 Parts 136 | 3 9 66 29 29 Haulers Intercepted 2 | . 1 . 1 . Recyclers Shooed . | . . . . . Parts Field Recycled . | . . . . . Retrieved Matter . | . . . . . Parts Self-Destructed . | . . . . . Prevented . | . . . . . Kills | -11 -10 -9 -8 -8 ------- Run | Yrd Mat Mat Mat Sto Combat Hostiles Destroyed 42 | . 2 25 9 6 Melee 2 | . . 1 1 . Guns 28 | . 2 23 3 . Cannons 4 | . . . 4 . AOE 7 | . . 1 . 6 Classes Destroyed 10 | 1 3 4 2 . Worker 4 | . . 1 3 . Builder 3 | . . . 1 2 Tunneler 2 | 1 1 . . . Hauler 2 | . 1 . 1 . Recycler 3 | . 1 . 1 1 Operator 2 | . . . 1 1 Watcher 5 | . . 2 1 2 Swarmer 18 | . 2 12 4 . Grunt 18 | . . 7 5 6 Sentry 6 | . . 6 . . Best Kill Streak 9 | 1 1 7 5 9 Combat Bots Only 6 | . 1 6 4 6 Max Kills in Single Turn 6 | 1 1 2 1 6 Gunslinging . | . . . . . Exploded 6 | . . 1 . 6 Melee 1 | . . 1 1 . Uniques/NPCs Destroyed . | . . . . . Combat | -11 -10 -9 -8 -8 -------- Run | Yrd Mat Mat Mat Sto Hostile Shots Fired 312 | . 10 170 131 1 Missed 77 | . 4 38 34 1 Damage Taken 2942 | . 48 1393 1363 138 Core 822 | . 7 238 549 28 Absorbed by Shields . | . . . . . Redirected to Shielding 17 | . . . 17 . Core Remaining (%) 79 | 100 97 40 . . Volleys Fired 185 | 2 29 86 63 5 Largest 3 | 2 2 2 3 3 Hottest 130 | 40 40 46 130 108 Shots Fired 315 | 4 58 143 95 15 Gun 261 | 4 58 143 56 . Cannon 39 | . . . 39 . Launcher 15 | . . . . 15 Special . | . . . . . Kinetic 261 | 4 58 143 56 . Thermal 39 | . . . 39 . Explosive . | . . . . . Electromagnetic 15 | . . . . 15 Robot Hit Streak 11 | 3 7 9 11 1 Robot Miss Streak 4 | . 4 4 4 3 Penetration Max . | . . . . . Secondary Targets 1 | . . 1 . . Max Gunslinging Chain 1 | . . 1 . . Shots Hit Robots 187 | 3 29 86 67 2 Core Hits 94 | 1 12 40 23 18 Critical Kills 1 | . . 1 . . Critical Parts Destroyed 4 | . . 2 2 . Critical Strikes 5 | . . 3 2 . Destroy 2 | . . 1 1 . Smash 3 | . . 2 1 . Melee Attacks 11 | . . 4 7 . Impact 11 | . . 4 7 . Slashing . | . . . . . Piercing . | . . . . . Sneak Attacks 1 | . . . 1 . Combat Hostiles . | . . . . . Follow-up Attacks . | . . . . . Damage Inflicted 4920 | 29 263 1395 1513 1720 Guns 1850 | 29 263 1031 527 . Cannons 702 | . . . 702 . Explosions 2019 | . . 299 . 1720 Melee 334 | . . 65 269 . Ramming 15 | . . . 15 . Kinetic 1850 | 29 263 1031 527 . Thermal 1455 | . . 299 702 454 Explosive . | . . . . . Electromagnetic 1266 | . . . . 1266 Impact 334 | . . 65 269 . Slashing . | . . . . . Piercing . | . . . . . Highest Corruption 3 | . . . 3 3 Average Corruption 2 | . . . 2 3 Corruption Purged . | . . . . . Corruption Blocked . | . . . . . Effects 3 | . . . 1 2 Matter Fused 2 | . . . 1 1 Heat Flow Errors 1 | . . . . 1 Overload Shots . | . . . . . Overflow Damage 339 | . . 104 157 78 Projectiles 6 | . . . 6 . Explosions 137 | . . 59 . 78 Melee 196 | . . 45 151 . Knockbacks 1 | . . . 1 . Impact 1 | . . . 1 . Kinetic . | . . . . . Secondary . | . . . . . Self-Inflicted Damage 130 | . . . 7 123 Shots 6 | . . . . 6 Rammed 3 | . . . 3 . Targets Rammed 3 | . . . 3 . Kicked . | . . . . . Crushed . | . . . . . Highest Temperature 283 | . 12 25 195 283 Average Temperature 37 | . 6 5 48 97 Received Heat Transfer 870 | . . 312 549 9 Siege Activations . | . . . . . Robots Corrupted . | . . . . . Combat Hostiles . | . . . . . Parts Fried 4 | . . . 2 2 Impact Corruptions 9 | . . 1 8 . Robots Melted . | . . . . . Combat Hostiles . | . . . . . Parts Melted 1 | . . . . 1 Heat Transferred 1812 | . . 250 962 600 Parts Sabotaged . | . . . . . Parts Stolen . | . . . . . Parts Stripped . | . . . . . Power Chain Reactions 6 | . . . . 6 Alert | -11 -10 -9 -8 -8 ------- Run | Yrd Mat Mat Mat Sto Peak Influence 428 | 5 110 428 309 398 Initial 97 | . 3 14 97 60 Average 169 | 2 58 232 167 220 Maximum Alert Level 2 | . . 2 1 1 Low Security (%) 62 | 100 100 29 79 50 Level 1 35 | . . 64 20 49 Level 2 2 | . . 6 . . Level 3 . | . . . . . Level 4 . | . . . . . Level 5 . | . . . . . High Security . | . . . . . Max Security . | . . . . . Squads Dispatched 6 | . . 2 2 2 Investigation 2 | . . 1 1 . Extermination . | . . . . . Reinforcement 2 | . . 1 1 . Assault 2 | . . . . 2 Garrison . | . . . . . Intercept . | . . . . . Searches Triggered . | . . . . . Construction Impeded . | . . . . . Haulers Reinforced . | . . . . . Active Scanning Responses . | . . . . . Cargo Convoy Interrupts . | . . . . . Stealth | -11 -10 -9 -8 -8 --------- Run | Yrd Mat Mat Mat Sto Distress Signals 6 | . . 4 1 1 Communications Jammed . | . . . . . Distress Signals . | . . . . . Times Spotted 85 | . 11 33 24 17 Peak Tracking Total 9 | . 3 6 7 9 Tactical Retreats 4 | . 1 3 . . Traps | -11 -10 -9 -8 -8 ------- Run | Yrd Mat Mat Mat Sto Traps Triggered 1 | . . . 1 . Indirectly . | . . . . . Trap Hack Attempts . | . . . . . Triggered . | . . . . . Disarmed . | . . . . . Reprogrammed . | . . . . . Reused . | . . . . . Traps Extracted . | . . . . . Installed . | . . . . . Triggered . | . . . . . Machines | -11 -10 -9 -8 -8 ---------- Run | Yrd Mat Mat Mat Sto Machines Disabled 6 | . . 1 1 4 Max in Single Turn 2 | . . 1 1 2 Machines Repaired . | . . . . . Machines Dismantled . | . . . . . Machines Sabotaged . | . . . . . Overloaded Fab Kills . | . . . . . Hacking | -11 -10 -9 -8 -8 --------- Run | Yrd Mat Mat Mat Sto Machines Accessed 5 | . . 2 3 . Terminals 5 | . . 2 3 . Fabricators . | . . . . . Repair Stations . | . . . . . Recycling Units . | . . . . . Scanalyzers . | . . . . . Garrison Access . | . . . . . Total Hacks 14 | . . 8 6 . Successful 7 | . . 4 3 . Failed 7 | . . 4 3 . Catastrophic 1 | . . 1 . . Database Lockouts . | . . . . . Manual 3 | . . 1 1 1 Terminals 14 | . . 8 6 . Fabricators . | . . . . . Repair Stations . | . . . . . Recycling Units . | . . . . . Scanalyzers . | . . . . . Garrison Access . | . . . . . Terminal Hacks 7 | . . 4 3 . Record 3 | . . 2 1 . Alert Level 2 | . . 1 1 . Unreport Threat 1 | . . 1 . . Security Status 1 | . . . 1 . Fabricator Hacks . | . . . . . Repair Station Hacks . | . . . . . Recycling Unit Hacks . | . . . . . Scanalyzer . | . . . . . Garrison Access Hacks . | . . . . . Unauthorized Hacks . | . . . . . Terminals . | . . . . . Fabricators . | . . . . . Repair Stations . | . . . . . Recycling Units . | . . . . . Scanalyzers . | . . . . . Garrison Access . | . . . . . Data Cores Recovered . | . . . . . Used . | . . . . . Hacking Detections 3 | . . 1 1 1 Full Trace Events 2 | . . 1 1 . Feedback Events . | . . . . . Feedback Blocked . | . . . . . Robot Schematics Acquired . | . . . . . Robots Built . | . . . . . Authchips . | . . . . . Time . | . . . . . Total Robot Build Rating . | . . . . . Part Schematics Acquired . | . . . . . Parts Built . | . . . . . Authchips . | . . . . . Time . | . . . . . Total Part Build Rating . | . . . . . Parts Repaired . | . . . . . Time . | . . . . . Parts Recycled . | . . . . . Recycled Matter . | . . . . . Retrieved Matter . | . . . . . Retrieved Components . | . . . . . Parts Scanalyzed . | . . . . . Part Schematics Acquired . | . . . . . Parts Damaged . | . . . . . Bothacking | -11 -10 -9 -8 -8 ------------ Run | Yrd Mat Mat Mat Sto Used RIF Installer . | . . . . . Robots Hacked . | . . . . . Non-combat . | . . . . . Combat . | . . . . . Robot Hacks Applied . | . . . . . Relay Couplers Released . | . . . . . Fabnet Peak Effective % . | . . . . . Robots Rewired . | . . . . . Allies Hacked . | . . . . . Hacks Repelled . | . . . . . Allies | -11 -10 -9 -8 -8 -------- Run | Yrd Mat Mat Mat Sto Total Allies 2 | . . . . 2 Largest Group 2 | . . . . 2 Highest-Rated Group 62 | . . . . 62 Highest-Rated Ally 31 | . . . . 31 Total Orders . | . . . . . Ally Attacks 17 | . . . . 17 Total Damage 293 | . . . . 293 Kills 3 | . . . . 3 Allies Corrupted . | . . . . . Allies Melted . | . . . . . Intel | -11 -10 -9 -8 -8 ------- Run | Yrd Mat Mat Mat Sto Robot Analysis Total . | . . . . . Derelict Logs Recovered . | . . . . . Drone Launches . | . . . . . Drone Recoveries . | . . . . . Exploration | -11 -10 -9 -8 -8 ------------- Run | Yrd Mat Mat Mat Sto Turns Passed 2213 | 63 498 886 567 199 Spaces Moved 1253 | 49 378 464 281 81 Core 71 | 10 . . 61 . Treads 177 | . . 96 . 81 Legs 3 | . . 3 . . Wheels 967 | 39 378 365 185 . Hover . | . . . . . Flight 35 | . . . 35 . Fastest Speed 50 | 50 100 85 50 160 Average Speed 123 | 89 100 132 121 211 Slowest Speed 685 | 100 115 240 685 240 Overloaded Moves . | . . . . . Propulsion Burnouts . | . . . . . Robots Hopped . | . . . . . Cave-ins Triggered . | . . . . . Exploration Rate (%) 26 | 4 49 40 20 17 Regions Visited 4 Branch Regions 1 Pre-discovered Areas . | . . . . . Known Exits Taken . | . . . . . Unknown Exits Taken 4 | 1 1 1 1 . Scrap Searched . | . . . . . Spaces Dug . | . . . . . Terrain Destroyed 60 | . . 27 11 22 Melee . | . . . . . Projectile 11 | . . . 11 . AOE 49 | . . 27 . 22 Terrain Rammed . | . . . . . Walls Destroyed . | . . . . . Machines Disabled . | . . . . . Actions | -11 -10 -9 -8 -8 --------- Run | Yrd Mat Mat Mat Sto Total 1606 | 62 450 593 402 99 Wait 75 | . 38 7 28 2 Move 1249 | 48 377 463 280 81 Hop . | . . . . . Pick Up 22 | 6 3 6 3 4 Fast Attach 20 | 4 . 6 7 3 Attach 14 | 2 1 3 4 4 Detach 2 | . . . 2 . Swap 13 | . 1 11 1 . Drop 12 | . 1 7 4 . Fire 185 | 2 29 86 63 5 Melee 11 | . . 4 7 . Ram 3 | . . . 3 . Kick . | . . . . . Crush . | . . . . . Escape Stasis . | . . . . . Rewire . | . . . . . Trap . | . . . . . Miscellaneous . | . . . . . Route ------- -11/Scrapyard -10/Materials -9/Materials -8/Materials -8/Storage History --------- Turn | Location | Event 8 | -11/Scrapyard | Discovered new exit (range 15) 64 | -11/Scrapyard | Entered Materials 305 | -10/Materials | Discovered new exit (range 10) 313 | -10/Materials | Build established: Mutant 562 | -10/Materials | Entered another Materials area 562 | -9/Materials | Evolved 2 slots: Utility x2 876 | -9/Materials | Lost 3 parts (1n1u1w) 1220 | -9/Materials | Build established: Scavenger-Mutant 1243 | -9/Materials | Core integrity fell below 50% 1260 | -9/Materials | Lost 4 parts (1p1n2u) 1389 | -9/Materials | Discovered new exit (range 4) 1448 | -9/Materials | Entered another Materials area 1448 | -8/Materials | Evolved 2 slots: Propulsion x1, Weapon x1 1448 | -8/Materials | Discovered new exit (range 8) 1849 | -8/Materials | Build established: Mutant 1962 | -8/Materials | Core integrity fell below 50% 1985 | -8/Materials | Released all parts (3) 1986 | -8/Materials | Core integrity fell below 20% 2010 | -8/Materials | Lost 4 parts (3n1u) 2015 | -8/Materials | Entered Storage 2031 | -8/Storage | Met a pair of Derelict thieves 2214 | -8/Storage | Destroyed self with Light Ion Engine chain reaction Last Messages --------------- 02169_ M-28 Smith fits Backup Plating III on M-28 Smith. 02170_ U-05 Engineer lays Concrete. 02171_ M-28 Smith repairs Wheel. 02171_ U-05 Engineer lays Concrete. 02171_ U-05 Engineer builds a Wall. 02174_ U-05 Engineer lays Concrete. 02176_ U-05 Engineer builds a Wall. 02193_ System corrupted: Matter fused (-7). 02197_ W-25 Informer destroyed. 02197_ Chain reaction triggered in Corrupted Lgt. Deuterium Engine. 02207_ U-05 Engineer builds a Door. 02212_ U-05 Engineer lays Concrete. 02214_ WF-FY8(g) suffers critical hit (Burn). 02214_ WF-FY8(g) destroyed. 02214_ Door malfunctions. 02214_ U-05 Engineer destroyed. 02214_ Chain reaction triggered in Corrupted Lgt. Ion Engine. Map ----- +----------------------------------------------------+ | | | | | | | | | | | | | | | | | | | | | | | | | | | ?#######?????????????????????????????????????????? | | ? T #?????????????????????????????????????????? | | "" #?????????????????????????????????????????? | | "" #?????????????????????????????????????????? | | "" #??# ?????????????????????????????????????? | | "" #??# "???????#????????????????????????????? | | " #??# ""????? #????????????????#???????????? | | ##??? ?? ??????????????? #???????????? | | #???? ??????????????? #???????????? | | ##+############+############### ###???????????? | | [= u % #???????????? | | %= = % ! "?????????? | | [ %= %% =@ #???????????? | | ##+#### =""############# ;######### #???????????? | | ### ""#??????????? %% ?????????????????????? | | """##?#######???????????!![ ???????????????????? | | ??????????????????????? #??????????????????? | | ??????????????????????? #??????????????????? | | ?????????????????????? [ #??????????????????? | | ?????????????????????? = #??????????????????? | | ????????????????????? #??????????????????? | | ????????????????????? g #??????????????????? | | ????????????????????########/##??????????????????? | | ????????????????????????????a#???????????????????? | | ????????????????????????????g#???????????????????? | | ????????????????????????????Y#???????????????????? | | ????????????????????????????? ???????????????????? | | ?????????????????????????????????????????????????? | | ?????????????????????????????????????????????????? | | ?????????????????????????????????????????????????? | | ?????????????????????????????????????????????????? | | ?????????????????????????????????????????????????? | | ?????????????????????????????????????????????????? | | ?????????????????????????????????????????????????? | | ?????????????????????????????????????????????????? | | ?????????????????????????????????????????????????? | | ?????????????????????????????????????????????????? | +----------------------------------------------------+ Best States ------------- Heat Dissipation 31 Energy Generation 14 Energy Capacity 280 Matter Stores 450 Matter Capacity 450 Sight Range 16 Terrain Scan Density 10 Armor Coverage 300 Utility Shielding 66 Evasion (%) 50 Recoil Reduction 1 Item Schematics ----------------- None Robot Schematics ------------------ None Fabricated ------------ Nothing Alien Tech Used ----------------- None Achievements -------------- Everything Is Under Control Quick And Dirty Risk Taker Challenges ------------ None Game ------ Seed DamperRestorationStick Manual? 0 Play Time 00:33:56 Cumulative 2.2 hours Start 2024.04.01 @ 17:09:22 End 2024.04.01 @ 20:28:13 Sessions 1 Manual Loads 0 Difficulty Rogue Special Mode None Game No. 5 Rogue 5 Adventurer 0 Explorer 0 Win Type - Total 0 Types 0/0/0/0/0/0/0/0/0 Lore% 2 Gallery% 6 Achievement% 5 Wizard Run 0 Options --------- Layout 1 ASCII 0 Keyboard 0 Movement Mouse Keybinds 0 Fullscreen 1 Font 16/SmallcapsGlow Map View 55x38 Zoom Use 0% Tactical HUD 1 Map Filters NONE Filters NONE Steam 1 RUN: fc497ed4-c37c-4a44-956a-a022abc34e0b